fUSD/lending_fUSD_20260617
["ID","MTS","AMOUNT","RATE_DAILY","PERIOD"]
[425239770,1781632250000,-299.347245,0.000274,7]
[425239776,1781632250000,-251.11897888,0.00027513,2]
[425239774,1781632250000,-151.0,0.00027511,2]
[425239773,1781632250000,-621.78829552,0.00027511,2]
[425239780,1781632250000,-151.0,0.00027513,2]
[425239810,1781632250000,-1944.57,0.00028,7]
[425239818,1781632250000,-151.0,0.00028061,2]
[425239807,1781632250000,-50147.90079155,0.00028,2]
[425239842,1781632250000,-317.34721273,0.00028437,7]
[425239836,1781632250000,-314.40572064,0.00028437,7]
[425239841,1781632250000,-442.80886268,0.00028437,7]
[425239839,1781632250000,-312.6268043,0.00028437,7]
[425239840,1781632250000,-340.22996563,0.00028437,7]
[425239837,1781632250000,-392.34068989,0.00028437,7]
[425239845,1781632250000,-170.77910681,0.00028437,7]
[425239855,1781632250000,-313.07577888,0.00028437,7]
[425239846,1781632250000,-225.07139675,0.00028437,7]
[425239844,1781632250000,-373.74844597,0.00028437,7]
[425239847,1781632250000,-406.52818096,0.00028437,5]
[425239848,1781632250000,-155.84442586,0.00028437,2]
[425239853,1781632250000,-553.42318326,0.00028437,7]
[425239851,1781632250000,-328.99459802,0.00028437,7]
[425239850,1781632250000,-243.25385441,0.00028437,7]
[425239852,1781632250000,-217.27853933,0.00028437,7]
[425239849,1781632250000,-176.0698863,0.00028437,2]
[425239854,1781632250000,-349.21965358,0.00028437,7]
[425239856,1781632250000,-328.93769979,0.00028449,7]
[425239857,1781632250000,-243.45672662,0.00028449,7]
[425239858,1781632250000,-397.92712936,0.00028449,7]
[425239859,1781632250000,-407.38102209,0.00028449,7]
[425239860,1781632250000,-449.59614307,0.00028449,7]
[425239838,1781632250000,-319.65043687,0.00028437,7]
[425239843,1781632250000,-212.57256951,0.00028437,5]
[425239808,1781632250000,-8763.40173482,0.00028,2]
[425239835,1781632250000,-318.1810123,0.00028437,2]
[425239834,1781632250000,-236.19658968,0.00028431,7]
[425239805,1781632250000,-2674.23,0.00027945,2]
[425239811,1781632250000,-600.0,0.00028,2]
[425239814,1781632250000,-260.4103811,0.00028061,2]
[425239813,1781632250000,-1779.9,0.00028018,2]
[425239812,1781632250000,-1233.98,0.00028,7]
[425239821,1781632250000,-150.0,0.00028091,30]
[425239815,1781632250000,-200.0,0.00028061,2]
[425239861,1781632250000,-154.52516762,0.00028449,7]
[425239817,1781632250000,-2884.75459676,0.00028061,2]
[425239819,1781632250000,-179.69863978,0.00028061,2]
[425239816,1781632250000,-290.3986294,0.00028061,2]
[425239820,1781632250000,-150.0,0.00028091,30]
[425239822,1781632250000,-2886.11,0.000281,7]
[425239825,1781632250000,-2739.45,0.00028219,7]
[425239824,1781632250000,-2674.23,0.00028219,2]
[425239823,1781632250000,-730.0,0.00028205,3]
[425239833,1781632250000,-427.33764846,0.00028402,7]
[425239831,1781632250000,-331.08919442,0.000284,7]
[425239830,1781632250000,-362.45506612,0.000284,7]
[425239829,1781632250000,-303.66237606,0.00028387,7]
[425239826,1781632250000,-152.0,0.00028295,8]
[425239827,1781632250000,-150.0,0.00028364,30]
[425239832,1781632250000,-335.92240882,0.00028402,7]
[425239828,1781632250000,-150.0,0.00028364,30]
[425239893,1781632251000,-204.11079572,0.0002863,2]
[425239896,1781632251000,-6122.36,0.0002863,30]
[425239898,1781632251000,-6123.35,0.0002863,30]
[425239897,1781632251000,-3606.75,0.0002863,30]
[425239890,1781632251000,-229.11,0.0002863,2]
[425239891,1781632251000,-226.45409407,0.0002863,2]
[425239895,1781632251000,-3351.07,0.0002863,30]
[425239892,1781632251000,-238.53318867,0.0002863,2]
[425239899,1781632251000,-1120.9,0.0002863,2]
[425239894,1781632251000,-1215.95,0.0002863,2]
[425239900,1781632251000,-3350.95,0.0002863,30]
[425239914,1781632251000,-404.24174675,0.00028648,7]
[425239903,1781632251000,-150.0,0.00028636,30]
[425239901,1781632251000,-3606.62,0.0002863,30]
[425239904,1781632251000,-2000.0,0.00028636,2]
[425239906,1781632251000,-2000.0,0.00028636,2]
[425239907,1781632251000,-2000.0,0.00028636,2]
[425239905,1781632251000,-2000.0,0.00028636,2]
[425239908,1781632251000,-2000.0,0.00028636,2]
[425239909,1781632251000,-2000.0,0.00028636,2]
[425239911,1781632251000,-2000.0,0.00028636,2]
[425239910,1781632251000,-2000.0,0.00028636,2]
[425239889,1781632251000,-151.0,0.00028609,2]
[425239902,1781632251000,-150.0,0.00028636,30]
[425239888,1781632251000,-2991.49051684,0.00028609,2]
[425239876,1781632251000,-193.57827877,0.00028453,7]
[425239887,1781632251000,-315.2822056,0.00028609,2]
[425239920,1781632251000,-1215.95,0.00028693,30]
[425239867,1781632251000,-304.7406497,0.00028449,7]
[425239864,1781632251000,-394.24069088,0.00028449,7]
[425239866,1781632251000,-366.5857688,0.00028449,7]
[425239865,1781632251000,-414.95147965,0.00028449,7]
[425239863,1781632251000,-368.73404972,0.00028449,7]
[425239862,1781632251000,-322.4664035,0.00028449,7]
[425239869,1781632251000,-307.91632317,0.00028449,7]
[425239871,1781632251000,-224.22163447,0.00028453,2]
[425239868,1781632251000,-308.73182499,0.00028449,7]
[425239870,1781632251000,-356.40878807,0.00028449,7]
[425239885,1781632251000,-544.0,0.00028588,7]
[425239873,1781632251000,-304.50826624,0.00028453,7]
[425239874,1781632251000,-399.90689087,0.00028453,7]
[425239875,1781632251000,-413.59643825,0.00028453,7]
[425239877,1781632251000,-324.59495087,0.00028453,7]
[425239880,1781632251000,-160.51558523,0.0002853,2]
[425239878,1781632251000,-2674.23,0.00028493,2]
[425239879,1781632251000,-1233.98,0.000285,7]
[425239886,1781632251000,-270.0455652,0.00028609,2]
[425239882,1781632251000,-770.0,0.00028561,10]
[425239881,1781632251000,-207.07709516,0.00028552,2]
[425239883,1781632251000,-5000.0,0.00028563,7]
[425239884,1781632251000,-5000.74745351,0.00028573,7]
[425239872,1781632251000,-301.60462417,0.00028453,7]
[425239918,1781632251000,-500.0,0.00028664,16]
[425239922,1781632251000,-1944.57,0.000287,7]
[425239917,1781632251000,-1120.9,0.00028661,7]
[425239945,1781632251000,-3350.95,0.00028797,7]
[425239948,1781632251000,-4250.65,0.000288,2]
[425239950,1781632251000,-2744.39,0.000288,2]
[425239951,1781632251000,-1215.95,0.0002882,2]
[425239947,1781632251000,-7084.41,0.000288,2]
[425239952,1781632251000,-1120.9,0.0002882,2]
[425239946,1781632251000,-3606.62,0.00028797,7]
[425239949,1781632251000,-10558.15,0.000288,2]
[425239955,1781632251000,-1215.95,0.00028852,7]
[425239964,1781632251000,-1233.98,0.000289,7]
[425239960,1781632251000,-2886.11,0.000289,7]
[425239953,1781632251000,-391.61844494,0.00028822,2]
[425239958,1781632251000,-1120.9,0.00028883,30]
[425239912,1781632251000,-2000.0,0.00028636,2]
[425239954,1781632251000,-2328.0,0.00028847,3]
[425239959,1781632251000,-200.0,0.000289,2]
[425239961,1781632251000,-200.0,0.000289,2]
[425239962,1781632251000,-200.0,0.000289,2]
[425239957,1781632251000,-1215.95,0.00028883,30]
[425239966,1781632251000,-150.0,0.00028909,30]
[425239965,1781632251000,-150.0,0.00028909,30]
[425239967,1781632251000,-1215.95,0.00028915,2]
[425239969,1781632251000,-1215.95,0.00028947,7]
[425239968,1781632251000,-1120.9,0.00028915,2]
[425239963,1781632251000,-200.0,0.000289,2]
[425239942,1781632251000,-6122.36,0.00028797,7]
[425239956,1781632251000,-1120.9,0.00028852,7]
[425239943,1781632251000,-3606.75,0.00028797,7]
[425239944,1781632251000,-6123.35,0.00028797,7]
[425239915,1781632251000,-150.0,0.00028656,2]
[425239913,1781632251000,-2000.0,0.00028636,2]
[425239916,1781632251000,-1215.95,0.00028661,7]
[425239919,1781632251000,-226.39386082,0.00028693,30]
[425239921,1781632251000,-1120.9,0.00028693,30]
[425239930,1781632251000,-1215.95,0.00028756,7]
[425239927,1781632251000,-1215.95,0.00028725,2]
[425239925,1781632251000,-377.32310137,0.00028725,2]
[425239928,1781632251000,-1120.9,0.00028725,2]
[425239924,1781632251000,-150.0,0.00028706,2]
[425239923,1781632251000,-160.0,0.00028706,3]
[425239929,1781632251000,-730.0,0.00028739,3]
[425239931,1781632251000,-1120.9,0.00028756,7]
[425239941,1781632251000,-3351.07,0.00028797,7]
[425239926,1781632251000,-150.92924055,0.00028725,2]
[425239940,1781632251000,-1120.9,0.00028788,30]
[425239937,1781632251000,-218.41127639,0.00028767,2]
[425239939,1781632251000,-1215.95,0.00028788,30]
[425239933,1781632251000,-1888.26790747,0.00028766,2]
[425239938,1781632251000,-173.0,0.00028767,14]
[425239936,1781632251000,-500.0,0.00028767,2]
[425239934,1781632251000,-2674.23,0.00028767,2]
[425239932,1781632251000,-476.10443138,0.00028766,2]
[425239935,1781632251000,-2542.16820703,0.00028767,30]
[425239991,1781632252000,-500.0,0.00029,2]
[425239983,1781632252000,-200.0,0.00029,2]
[425240000,1781632252000,-1145.54807125,0.00029,2]
[425239989,1781632252000,-359.59532505,0.00029,2]
[425239992,1781632252000,-500.0,0.00029,2]
[425239990,1781632252000,-1819.00929488,0.00029,2]
[425239994,1781632252000,-42526.05530497,0.00029,2]
[425239999,1781632252000,-200.0,0.00029,2]
[425239996,1781632252000,-157.30076928,0.00029,2]
[425239995,1781632252000,-220.03448658,0.00029,2]
[425239998,1781632252000,-200.07,0.00029,2]
[425240001,1781632252000,-196.29447307,0.00029,2]
[425239986,1781632252000,-200.0,0.00029,2]
[425240003,1781632252000,-200.0,0.00029,2]
[425239993,1781632252000,-500.0,0.00029,2]
[425239985,1781632252000,-200.0,0.00029,2]
[425239972,1781632252000,-3351.07,0.00028964,2]
[425239984,1781632252000,-200.0,0.00029,2]
[425240004,1781632252000,-200.0,0.00029,2]
[425239976,1781632252000,-3350.95,0.00028964,2]
[425239977,1781632252000,-3606.62,0.00028964,2]
[425239974,1781632252000,-3606.75,0.00028964,2]
[425239971,1781632252000,-152.0,0.00028956,9]
[425239973,1781632252000,-6122.36,0.00028964,2]
[425239987,1781632252000,-500.0,0.00029,2]
[425239970,1781632252000,-1120.9,0.00028947,7]
[425239980,1781632252000,-200.0,0.00029,2]
[425239978,1781632252000,-1215.95,0.00028979,30]
[425239979,1781632252000,-1120.9,0.00028979,30]
[425239982,1781632252000,-200.0,0.00029,2]
[425239981,1781632252000,-200.0,0.00029,2]
[425239988,1781632252000,-189.52332653,0.00029,2]
[425239975,1781632252000,-6123.35,0.00028964,2]
[425240006,1781632252000,-200.0,0.00029,2]
[425239997,1781632252000,-22851.35665026,0.00029,2]
[425240007,1781632252000,-200.0,0.00029,2]
[425240034,1781632252000,-500.0,0.00029,2]
[425240029,1781632252000,-1173.30601388,0.00029,2]
[425240025,1781632252000,-220.07,0.00029,2]
[425240027,1781632252000,-226.62288355,0.00029,2]
[425240028,1781632252000,-1203.02871637,0.00029,2]
[425240026,1781632252000,-600.0,0.00029,2]
[425240024,1781632252000,-200.0,0.00029,2]
[425240033,1781632252000,-500.0,0.00029,2]
[425240032,1781632252000,-500.0,0.00029,2]
[425240031,1781632252000,-500.0,0.00029,2]
[425240036,1781632252000,-1000.0,0.00029,2]
[425240038,1781632252000,-1900.51013,0.00029,2]
[425240039,1781632252000,-1215.95,0.0002901,2]
[425240005,1781632252000,-200.0,0.00029,2]
[425240030,1781632252000,-5252.8754428,0.00029,2]
[425240020,1781632252000,-200.0,0.00029,2]
[425240035,1781632252000,-1716.0,0.00029,7]
[425240018,1781632252000,-200.0,0.00029,2]
[425240002,1781632252000,-1587.26265086,0.00029,2]
[425240021,1781632252000,-200.0,0.00029,2]
[425240009,1781632252000,-500.0,0.00029,2]
[425240012,1781632252000,-500.0,0.00029,2]
[425240037,1781632252000,-1000.0,0.00029,2]
[425240010,1781632252000,-202.31,0.00029,2]
[425240011,1781632252000,-500.0,0.00029,2]
[425240008,1781632252000,-200.0,0.00029,2]
[425240022,1781632252000,-200.0,0.00029,2]
[425240023,1781632252000,-200.0,0.00029,2]
[425240015,1781632252000,-200.0,0.00029,2]
[425240019,1781632252000,-200.0,0.00029,2]
[425240014,1781632252000,-505.48,0.00029,2]
[425240017,1781632252000,-200.0,0.00029,2]
[425240013,1781632252000,-500.0,0.00029,2]
[425240016,1781632252000,-200.0,0.00029,2]
[425240080,1781632253000,-1215.98,0.00029232,7]
[425240076,1781632253000,-1215.95,0.00029201,2]
[425240074,1781632253000,-150.0,0.00029182,30]
[425240077,1781632253000,-1120.9,0.00029201,2]
[425240072,1781632253000,-1120.9,0.00029169,30]
[425240075,1781632253000,-1362.15111286,0.00029199,2]
[425240071,1781632253000,-1215.95,0.00029169,30]
[425240069,1781632253000,-419.0,0.00029166,2]
[425240079,1781632253000,-969.34,0.00029232,7]
[425240070,1781632253000,-6078.0,0.00029166,2]
[425240073,1781632253000,-150.0,0.00029182,30]
[425240081,1781632253000,-1121.06,0.00029232,7]
[425240091,1781632253000,-543.68259918,0.00029256,7]
[425240082,1781632253000,-455.49356409,0.00029243,7]
[425240083,1781632253000,-183.63272158,0.00029246,7]
[425240085,1781632253000,-218.26582501,0.00029246,7]
[425240084,1781632253000,-451.15457155,0.00029246,7]
[425240092,1781632253000,-388.01383182,0.00029256,7]
[425240089,1781632253000,-228.69056799,0.00029246,7]
[425240088,1781632253000,-224.80631647,0.00029246,7]
[425240087,1781632253000,-445.15704267,0.00029246,7]
[425240090,1781632253000,-185.68300126,0.00029256,7]
[425240105,1781632253000,-203.13590296,0.00029259,7]
[425240065,1781632253000,-3606.62,0.00029132,30]
[425240078,1781632253000,-1745.60876104,0.0002923,5]
[425240063,1781632253000,-6123.35,0.00029132,30]
[425240056,1781632253000,-1215.95,0.00029074,30]
[425240068,1781632253000,-280.03725111,0.00029157,2]
[425240040,1781632253000,-1120.9,0.0002901,2]
[425240048,1781632253000,-1853.0,0.00029041,30]
[425240044,1781632253000,-438.0,0.0002904,30]
[425240045,1781632253000,-418.0,0.00029041,30]
[425240042,1781632253000,-328.0,0.0002904,30]
[425240041,1781632253000,-346.0,0.0002904,30]
[425240046,1781632253000,-418.0,0.00029041,30]
[425240043,1781632253000,-792.0,0.0002904,30]
[425240047,1781632253000,-304.0,0.00029041,30]
[425240049,1781632253000,-2538.0,0.00029041,30]
[425240107,1781632253000,-730.0,0.00029273,4]
[425240059,1781632253000,-1120.9,0.00029105,2]
[425240057,1781632253000,-1120.9,0.00029074,30]
[425240051,1781632253000,-1120.9,0.00029042,7]
[425240060,1781632253000,-3351.07,0.00029132,30]
[425240058,1781632253000,-1215.95,0.00029105,2]
[425240053,1781632253000,-335.0,0.00029051,30]
[425240050,1781632253000,-1215.95,0.00029042,7]
[425240054,1781632253000,-819.0,0.00029051,30]
[425240052,1781632253000,-1535.0,0.00029051,30]
[425240055,1781632253000,-212.0,0.00029051,30]
[425240062,1781632253000,-3606.75,0.00029132,30]
[425240061,1781632253000,-6122.36,0.00029132,30]
[425240064,1781632253000,-3350.95,0.00029132,30]
[425240066,1781632253000,-1215.95,0.00029137,7]
[425240067,1781632253000,-1120.9,0.00029137,7]
[425240109,1781632253000,-497.79096713,0.00029294,7]
[425240086,1781632253000,-336.74157919,0.00029246,7]
[425240094,1781632253000,-399.46292734,0.00029256,7]
[425240129,1781632253000,-352.13977259,0.00029294,2]
[425240133,1781632253000,-434.55707866,0.00029294,7]
[425240130,1781632253000,-246.86913171,0.00029294,7]
[425240128,1781632253000,-311.68885171,0.00029294,2]
[425240138,1781632253000,-6122.36,0.00029299,7]
[425240135,1781632253000,-523.82948036,0.00029294,7]
[425240134,1781632253000,-830.13477489,0.00029294,7]
[425240131,1781632253000,-486.50770882,0.00029294,7]
[425240137,1781632253000,-3351.07,0.00029299,7]
[425240132,1781632253000,-493.49189704,0.00029294,7]
[425240136,1781632253000,-469.61366832,0.00029294,7]
[425240139,1781632253000,-3606.75,0.00029299,7]
[425240142,1781632253000,-3606.62,0.00029299,7]
[425240144,1781632253000,-493.40654968,0.00029306,7]
[425240141,1781632253000,-3350.95,0.00029299,7]
[425240147,1781632253000,-611.07153313,0.00029306,7]
[425240143,1781632253000,-1944.57,0.000293,7]
[425240148,1781632253000,-309.05033523,0.00029306,7]
[425240146,1781632253000,-596.89069404,0.00029306,7]
[425240149,1781632253000,-674.39421461,0.00029306,7]
[425240145,1781632253000,-486.91345324,0.00029306,7]
[425240150,1781632253000,-483.69960525,0.00029306,7]
[425240152,1781632253000,-272.53783849,0.00029306,7]
[425240151,1781632253000,-175.03080818,0.00029306,7]
[425240104,1781632253000,-373.85646336,0.00029259,7]
[425240127,1781632253000,-234.10149032,0.00029294,7]
[425240123,1781632253000,-450.14279349,0.00029294,7]
[425240140,1781632253000,-6123.35,0.00029299,7]
[425240126,1781632253000,-295.19032648,0.00029294,2]
[425240108,1781632253000,-266.31790529,0.00029288,7]
[425240120,1781632253000,-425.14513902,0.00029294,5]
[425240093,1781632253000,-203.93419966,0.00029256,7]
[425240098,1781632253000,-407.66483661,0.00029256,7]
[425240106,1781632253000,-641.00647269,0.00029259,7]
[425240103,1781632253000,-214.79676551,0.00029259,7]
[425240096,1781632253000,-359.14668139,0.00029256,7]
[425240113,1781632253000,-479.4756553,0.00029294,7]
[425240101,1781632253000,-439.33507315,0.00029259,7]
[425240111,1781632253000,-471.60858097,0.00029294,7]
[425240114,1781632253000,-289.84241662,0.00029294,7]
[425240100,1781632253000,-369.80378098,0.00029259,7]
[425240112,1781632253000,-588.51103484,0.00029294,7]
[425240099,1781632253000,-1396.83280242,0.00029256,30]
[425240121,1781632253000,-560.62266895,0.00029294,7]
[425240118,1781632253000,-664.21329401,0.00029294,7]
[425240102,1781632253000,-503.88361323,0.00029259,7]
[425240122,1781632253000,-341.55821363,0.00029294,7]
[425240125,1781632253000,-227.28306632,0.00029294,7]
[425240119,1781632253000,-476.0208191,0.00029294,7]
[425240116,1781632253000,-510.34494845,0.00029294,7]
[425240124,1781632253000,-609.79227144,0.00029294,5]
[425240115,1781632253000,-468.94020645,0.00029294,7]
[425240097,1781632253000,-377.44368739,0.00029256,7]
[425240110,1781632253000,-477.27151845,0.00029294,2]
[425240095,1781632253000,-496.63379163,0.00029256,7]
[425240117,1781632253000,-165.62709636,0.00029294,7]
[425240193,1781632254000,-7084.41,0.000296,2]
[425240194,1781632254000,-4250.65,0.000296,2]
[425240191,1781632254000,-150.0,0.00029534,2]
[425240192,1781632254000,-36658.0,0.00029596,2]
[425240189,1781632254000,-1500.0,0.00029534,15]
[425240184,1781632254000,-1500.0,0.00029534,15]
[425240196,1781632254000,-2744.39,0.000296,2]
[425240190,1781632254000,-1500.0,0.00029534,15]
[425240186,1781632254000,-1839.90977,0.00029534,15]
[425240187,1781632254000,-1500.0,0.00029534,15]
[425240195,1781632254000,-10558.15,0.000296,2]
[425240188,1781632254000,-1500.0,0.00029534,15]
[425240197,1781632254000,-164.5371072,0.00029614,2]
[425240220,1781632254000,-261.0789633,0.00029822,7]
[425240198,1781632254000,-164.5371072,0.00029614,2]
[425240200,1781632254000,-179.34871557,0.00029623,30]
[425240201,1781632254000,-181.58483225,0.00029623,30]
[425240207,1781632254000,-400.0,0.0002977,2]
[425240203,1781632254000,-290.3986294,0.00029705,2]
[425240206,1781632254000,-160.0,0.00029762,3]
[425240205,1781632254000,-150.0,0.00029727,30]
[425240202,1781632254000,-2886.11,0.000297,7]
[425240204,1781632254000,-150.0,0.00029727,30]
[425240208,1781632254000,-730.0,0.00029807,4]
[425240210,1781632254000,-188.20965155,0.00029816,2]
[425240179,1781632254000,-1284.17,0.00029534,7]
[425240199,1781632254000,-152.0,0.00029617,10]
[425240183,1781632254000,-1500.0,0.00029534,15]
[425240153,1781632254000,-591.36103633,0.00029306,7]
[425240176,1781632254000,-167.31,0.00029507,14]
[425240156,1781632254000,-457.11097454,0.00029306,7]
[425240155,1781632254000,-549.8786532,0.00029306,7]
[425240157,1781632254000,-463.09773749,0.00029306,7]
[425240154,1781632254000,-622.42721947,0.00029306,7]
[425240160,1781632254000,-534.6131821,0.00029306,7]
[425240158,1781632254000,-461.87448475,0.00029306,7]
[425240159,1781632254000,-252.24571451,0.00029306,7]
[425240161,1781632254000,-448.44326893,0.0002931,2]
[425240162,1781632254000,-452.40693625,0.0002931,7]
[425240163,1781632254000,-456.76239936,0.0002931,7]
[425240165,1781632254000,-620.39465737,0.0002931,7]
[425240164,1781632254000,-599.86033631,0.0002931,7]
[425240166,1781632254000,-193.2307433,0.0002931,7]
[425240167,1781632254000,-486.8924263,0.0002931,7]
[425240169,1781632254000,-355.4181708,0.0002931,7]
[425240172,1781632254000,-200.0,0.00029481,2]
[425240168,1781632254000,-387.15655753,0.0002931,7]
[425240170,1781632254000,-150.0,0.00029455,30]
[425240171,1781632254000,-150.0,0.00029455,30]
[425240173,1781632254000,-191.75,0.00029507,14]
[425240175,1781632254000,-167.31,0.00029507,14]
[425240185,1781632254000,-1500.0,0.00029534,15]
[425240181,1781632254000,-1500.0,0.00029534,15]
[425240177,1781632254000,-167.3,0.00029507,14]
[425240212,1781632254000,-302.64138709,0.00029816,2]
[425240180,1781632254000,-1500.0,0.00029534,15]
[425240182,1781632254000,-1500.0,0.00029534,15]
[425240174,1781632254000,-191.76,0.00029507,14]
[425240211,1781632254000,-298.91452595,0.00029816,2]
[425240178,1781632254000,-500.0,0.00029524,18]
[425240213,1781632254000,-676.73185733,0.00029816,7]
[425240247,1781632254000,-671.84481764,0.00029829,7]
[425240248,1781632254000,-429.59353102,0.00029829,7]
[425240254,1781632254000,-592.11,0.00029863,7]
[425240246,1781632254000,-659.00260973,0.00029829,7]
[425240249,1781632254000,-560.78469504,0.00029829,7]
[425240253,1781632254000,-592.26,0.00029863,7]
[425240252,1781632254000,-2739.45,0.00029862,7]
[425240258,1781632254000,-592.11,0.00029863,7]
[425240257,1781632254000,-592.11,0.00029863,7]
[425240251,1781632254000,-532.63581058,0.00029859,7]
[425240256,1781632254000,-592.11,0.00029863,7]
[425240250,1781632254000,-854.67529692,0.00029829,7]
[425240255,1781632254000,-592.11,0.00029863,7]
[425240260,1781632254000,-592.11,0.00029863,7]
[425240270,1781632254000,-592.11,0.00029863,7]
[425240271,1781632254000,-592.11,0.00029863,7]
[425240261,1781632254000,-592.11,0.00029863,7]
[425240259,1781632254000,-592.11,0.00029863,7]
[425240262,1781632254000,-592.11,0.00029863,7]
[425240267,1781632254000,-592.11,0.00029863,7]
[425240263,1781632254000,-592.11,0.00029863,7]
[425240264,1781632254000,-592.11,0.00029863,7]
[425240269,1781632254000,-592.11,0.00029863,7]
[425240266,1781632254000,-592.11,0.00029863,7]
[425240265,1781632254000,-592.11,0.00029863,7]
[425240268,1781632254000,-592.11,0.00029863,7]
[425240272,1781632254000,-592.11,0.00029863,7]
[425240244,1781632254000,-554.70567147,0.00029829,7]
[425240241,1781632254000,-1109.08,0.00029828,10]
[425240209,1781632254000,-607.32475212,0.00029813,7]
[425240243,1781632254000,-476.23,0.00029828,10]
[425240216,1781632254000,-667.73556401,0.00029816,7]
[425240217,1781632254000,-449.61263293,0.00029816,7]
[425240218,1781632254000,-457.38113598,0.00029816,7]
[425240219,1781632254000,-406.27180593,0.00029816,7]
[425240215,1781632254000,-505.11236878,0.00029816,7]
[425240214,1781632254000,-436.53165001,0.00029816,7]
[425240221,1781632254000,-371.36600253,0.00029827,7]
[425240239,1781632254000,-212.01908334,0.00029827,7]
[425240223,1781632254000,-724.91013223,0.00029827,7]
[425240224,1781632254000,-151.11173499,0.00029827,7]
[425240232,1781632254000,-202.60041276,0.00029827,7]
[425240227,1781632254000,-407.86839933,0.00029827,7]
[425240231,1781632254000,-488.13961867,0.00029827,7]
[425240225,1781632254000,-232.7376226,0.00029827,7]
[425240229,1781632254000,-232.94769071,0.00029827,7]
[425240228,1781632254000,-159.62180091,0.00029827,7]
[425240242,1781632254000,-541.53,0.00029828,10]
[425240240,1781632254000,-267.8330395,0.00029827,7]
[425240238,1781632254000,-217.62012303,0.00029827,7]
[425240236,1781632254000,-566.16553108,0.00029827,7]
[425240234,1781632254000,-662.17838884,0.00029827,7]
[425240237,1781632254000,-611.49725492,0.00029827,7]
[425240235,1781632254000,-538.72002208,0.00029827,7]
[425240222,1781632254000,-159.95108294,0.00029827,2]
[425240233,1781632254000,-599.19439102,0.00029827,7]
[425240230,1781632254000,-225.77708637,0.00029827,7]
[425240226,1781632254000,-582.02074774,0.00029827,7]
[425240245,1781632254000,-229.5782513,0.00029829,7]
[425240318,1781632255000,-500.0,0.00029863,2]
[425240315,1781632255000,-150.0,0.00029863,2]
[425240312,1781632255000,-150.0,0.00029863,2]
[425240317,1781632255000,-298.50745568,0.00029863,2]
[425240320,1781632255000,-500.0,0.00029863,2]
[425240307,1781632255000,-500.0,0.00029863,2]
[425240310,1781632255000,-150.0,0.00029863,2]
[425240308,1781632255000,-305.54732619,0.00029863,2]
[425240296,1781632255000,-179.47107134,0.00029863,2]
[425240306,1781632255000,-500.0,0.00029863,2]
[425240305,1781632255000,-500.0,0.00029863,2]
[425240309,1781632255000,-150.0,0.00029863,2]
[425240313,1781632255000,-150.0,0.00029863,2]
[425240324,1781632255000,-500.0,0.00029863,2]
[425240319,1781632255000,-647.67632266,0.00029863,2]
[425240314,1781632255000,-150.0,0.00029863,2]
[425240321,1781632255000,-500.0,0.00029863,2]
[425240322,1781632255000,-500.0,0.00029863,2]
[425240323,1781632255000,-500.0,0.00029863,2]
[425240332,1781632255000,-500.0,0.00029863,2]
[425240327,1781632255000,-500.0,0.00029863,2]
[425240325,1781632255000,-500.0,0.00029863,2]
[425240331,1781632255000,-500.0,0.00029863,2]
[425240330,1781632255000,-500.0,0.00029863,2]
[425240326,1781632255000,-500.0,0.00029863,2]
[425240303,1781632255000,-500.0,0.00029863,2]
[425240311,1781632255000,-150.0,0.00029863,2]
[425240304,1781632255000,-500.0,0.00029863,2]
[425240290,1781632255000,-500.0,0.00029863,2]